[Event "14th BPB Limburg Open 2022"]
[Site "Maastricht"]
[Date "2022.06.03"]
[Round "1.12"]
[White "Bentel, Robin"]
[Black "De Rover, Yong Hoon"]
[Result "0-1"]
[ECO "E15"]
[WhiteElo "2218"]
[BlackElo "2365"]
[Annotator "TA"]
[PlyCount "60"]
[EventDate "2022.06.03"]
[EventType "swiss"]
[EventCountry "NED"]
[SourceTitle "playchess.com"]
[Source "ChessBase"]
[SourceQuality "1"]
[TimeControl "7200+15"]

{[%evp 19,60,0,0,-41,-35,-102,-39,-115,-109,-122,-125,-108,-111,-126,-84,-115,-87,-156,-152,-147,-155,-139,-145,-172,-168,-204,-190,-282,-281,-287,-285,-306,-319,-337,-306,-558,-540,-612,-608,-769,-758,-728,-708]} 1. d4 {[%emt 0:00:06]} Nf6 {[%emt 0:00:47]} 2. c4 {[%emt 0:00:18]} e6 {[%emt 0:00:43]} 3. Nf3 {[%emt 0:00:27]} b6 {[%emt 0:00:54]} 4. g3 {[%emt 0:00:30]} Ba6 {[%emt 0:00:46]} 5. b3 {[%emt 0:00:36]} Bb4+ {[%emt 0:00:30]} 6. Bd2 {[%emt 0:00:38]} Be7 {[%emt 0:00:08]} 7. Bg2 {[%emt 0:01:16]} c6 {[%emt 0:00:23]} 8. Nc3 {[%emt 0:04:07]} d5 {[%emt 0:02:36]} 9. O-O {[%emt 0:04:01]} O-O {[%emt 0:02:11]} 10. Bf4 {[%emt 0:09:48] now supersedes 10.cxd5.} Nbd7 {[%emt 0:03:54]} 11. Nd2 {[%emt 0:08:06] E15: Queen's Indian: 4 g3 sidelines, 4 g3 Ba6 and 4 g3 Bb7 early deviations.} Nh5 {[%emt 0:12:27] [#]} 12. a3 $146 {[%emt 0:17:55]} (12. Be3 $15) ({Predecessor:} 12. Be3 Rc8 13. a4 f5 14. cxd5 exd5 15. Nf3 f4 16. Bd2 Bd6 17. Re1 Re8 18. e4 fxe3 19. Bxe3 {½-½ (57) Li,C (2751)-Wojtaszek,R (2727) Huaian 2016}) 12... Rc8 {[%emt 0:13:40]} (12... Nxf4 $17 13. gxf4 Bf6) 13. b4 {[%emt 0:05:11]} ({Better is} 13. Be3 $15) 13... Nxf4 $17 {[%emt 0:14:03]} ({Not} 13... dxc4 14. Be3 $15) 14. gxf4 {[%emt 0:00:07]} dxc4 {[%emt 0:02:04]} 15. Qa4 {[%emt 0:14:50] [#]} Nb8 {[%emt 0:03:01]} 16. e3 {[%emt 0:00:27]} Qc7 {[%emt 0:11:11]} 17. Nf3 {[%emt 0:16:18]} Rcd8 {[%emt 0:16:31]} 18. Ne5 {[%emt 0:04:17]} ({White should try} 18. Qc2) 18... b5 {[%emt 0:02:17]} 19. Qc2 {[%emt 0:00:21]} f6 {[%emt 0:00:40]} 20. Nf3 {[%emt 0:02:17]} Bc8 {[%emt 0:01:28]} 21. Rfb1 {[%emt 0:09:11]} Nd7 {[%emt 0:06:45][%cal Bb8d7,Bd7b6,Bb6a8][%mdl 32]} 22. a4 {[%emt 0:08:05] [#]} a6 {[%emt 0:00:27]} 23. d5 {[%emt 0:01:05]} (23. Kh1 {is a better defense.}) 23... exd5 $19 {[%emt 0:06:42]} ({Worse is} 23... cxd5 24. Nd4 Nb8 25. axb5 axb5 26. Ndxb5 $15) 24. Nd4 {[%emt 0:01:25][%cal Od4c6]} Nb6 {[%emt 0:01:15]} 25. a5 {[%emt 0:05:45]} Na8 {[%emt 0:00:24]} 26. Rd1 {[%emt 0:05:19]} Kh8 {[%emt 0:01:40]} 27. Nxc6 {[%emt 0:02:11]} (27. Rab1) 27... Qxc6 {[%emt 0:00:40] Black is clearly winning.} 28. Rxd5 {[%emt 0:01:11]} Bb7 {[%emt 0:06:22]} 29. Rg5 {[%emt 0:01:01]} Qc8 {[%emt 0:01:30]} 30. Rh5 {[%emt 0:00:23]} Rd3 {[%emt 0:00:28] White got outplayed after the opening.  Weighted Error Value: White=0.51/Black=0.09 (flawless)} 0-1

[Event "14th BPB Limburg Open 2022"]
[Site "Maastricht"]
[Date "2022.06.03"]
[Round "1.13"]
[White "Thinius, Marco"]
[Black "Noiroux, Kevin"]
[Result "0-1"]
[ECO "A10"]
[WhiteElo "2351"]
[BlackElo "2215"]
[Annotator "TA"]
[PlyCount "80"]
[EventDate "2022.06.03"]
[EventType "swiss"]
[EventCountry "NED"]
[SourceTitle "playchess.com"]
[Source "ChessBase"]
[SourceQuality "1"]
[TimeControl "7200+15"]

{[%evp 14,80,23,16,21,25,26,0,5,0,6,5,39,-28,10,22,33,39,66,56,55,4,34,23,37,41,77,93,79,87,117,121,143,147,130,135,147,130,156,130,163,0,0,0,297,205,298,295,305,311,285,-313,-309,-304,-304,-302,-298,-295,-280,-269,-266,-317,-309,-371,-354,-593,-577,-772,-729]} 1. c4 {[%emt 0:00:08]} f5 {[%emt 0:00:05]} 2. g3 {[%emt 0:00:35]} Nf6 {[%emt 0:00:06]} 3. Bg2 {[%emt 0:00:22]} g6 {[%emt 0:00:06]} 4. Nc3 {[%emt 0:00:13]} Bg7 {[%emt 0:00:08]} 5. d3 {[%emt 0:00:24]} d6 {[%emt 0:00:21]} 6. e4 {[%emt 0:00:12]} fxe4 {[%emt 0:00:08]} 7. dxe4 {[%emt 0:00:08]} O-O {[%emt 0:00:43]} 8. Nge2 {[%emt 0:00:36]} c5 {[%emt 0:00:05] A10: English Opening: Unusual Replies for Black.} 9. O-O {[%emt 0:00:51]} Nc6 {[%emt 0:00:16]} 10. h3 {[%emt 0:04:01]} e5 {[%emt 0:01:31] The position is equal.} 11. f4 {[%emt 0:04:42]} Be6 {[%emt 0:19:55]} 12. b3 {[%emt 0:00:21] Threatening f5.} Qd7 {[%emt 0:09:08]} 13. Kh2 {[%emt 0:02:18]} ({White should try} 13. g4 $14) 13... exf4 {[%emt 0:01:14]} 14. Bxf4 {[%emt 0:02:14]} Ne5 {[%emt 0:36:27]} 15. Qd2 {[%emt 0:03:33] [#]} a6 $146 {[%emt 0:10:37]} ({Predecessor:} 15... Nh5 16. Rad1 Rad8 17. Bg5 Rxf1 18. Rxf1 Rf8 19. Rxf8+ Bxf8 20. Nf4 Nxf4 21. gxf4 Nc6 22. Bf6 Kf7 {½-½ (22) Barbier,W (2110)-Le Quang,K (2286) Belgium 2014}) 16. Rad1 {[%emt 0:02:51]} Rad8 {[%emt 0:02:29]} 17. Bg5 {[%emt 0:16:52]} ({Better is} 17. Bxe5 $14 dxe5 18. Nd5) 17... b5 {[%emt 0:21:11]} 18. cxb5 {[%emt 0:05:40]} axb5 {[%emt 0:00:06]} 19. Nf4 {[%emt 0:00:21]} c4 {[%emt 0:08:29]} 20. Nxe6 {[%emt 0:18:14]} Qxe6 {[%emt 0:00:06]} 21. Nxb5 {[%emt 0:00:12]} cxb3 {[%emt 0:06:41]} 22. Nd4 {[%emt 0:03:00]} (22. Nxd6 $2 bxa2 23. Qe2 Rxd6 $19) 22... Qe8 {[%emt 0:00:07]} 23. axb3 {[%emt 0:00:50]} Rd7 {[%emt 0:00:05]} 24. b4 {[%emt 0:06:50]} h6 {[%emt 0:00:22]} 25. Qa2+ {[%emt 0:22:00]} (25. Bxh6 $2 Bxh6 26. Qa2+ (26. Qxh6 $2 Nfg4+ 27. hxg4 Nxg4+ 28. Kg1 Nxh6 $19) 26... Qf7 $19) 25... Kh7 {[%emt 0:00:14]} 26. Bc1 $36 {[%emt 0:01:24][%mdl 2048] White is on the roll.} Re7 {[%emt 0:03:25][%cal Of6e4] Against Ne6} 27. Rfe1 $2 {[%emt 0:05:36]} (27. b5 $18) 27... d5 $1 $11 {[%emt 0:02:00]} 28. b5 {[%emt 0:05:44] aiming for Ba3.} (28. exd5 $2 Neg4+ $1 {[%mdl 512]} 29. hxg4 Rxe1 30. Rxe1 Qxe1 $19) 28... Nc4 {[%emt 0:00:02][%mdl 8192] Pair of Knights!} (28... Nxe4 $11 {and Black stays safe.} 29. Qb3 (29. Qxd5 $2 Nc3 $19) 29... Nf2) 29. Nc6 $18 {[%emt 0:01:16]} ({Don't go for} 29. exd5 $2 Rxe1 30. Rxe1 Qxe1 $19) 29... Rxe4 {[%emt 0:00:39]} (29... Re6 $142 30. Bf4 Nxe4) 30. Bxe4 {[%emt 0:07:30]} Nxe4 {[%emt 0:00:01]} 31. Rxd5 {[%emt 0:01:57]} Qe6 {[%emt 0:00:52]} 32. Rd2 {[%emt 0:06:19][%mdl 8192] [#]} (32. Qxc4 $2 {is a self mate.} Rf2+ 33. Kh1 Qxh3+ 34. Kg1 Qh2#) (32. Rd8 $1 $18 {is the narrow road to win.} Rxd8 33. Nxd8) 32... Ncxd2 $1 $19 {[%emt 0:00:11][%mdl 64] Discovered Attack. Really sharp!} 33. Qxd2 {[%emt 0:00:53]} (33. Qxe6 {leads to mate.} Rf2+ 34. Kh1 {[#]} Nf3 $1) 33... Nxd2 {[%emt 0:00:23]} 34. Rxe6 {[%emt 0:00:02]} Rf2+ {[%emt 0:00:16]} 35. Kg1 {[%emt 0:00:10]} Rf1+ {[%emt 0:00:04]} 36. Kg2 {[%emt 0:00:02]} Rxc1 {[%emt 0:00:07]} 37. b6 {[%emt 0:00:25] Strongly threatening b7.} Rb1 {[%emt 0:00:01]} 38. Nd8 {[%emt 0:00:23]} Bd4 {[%emt 0:00:25]} 39. Re7+ $2 {[%emt 0:00:33]} (39. h4 Rxb6 40. Re2) 39... Kg8 {[%emt 0:00:01] ( -> ...Rg1+)} 40. Re8+ {[%emt 0:00:10]} Kg7 {[%emt 0:00:14] Black used his chance.  Weighted Error Value: White=0.47/Black=0.30} 0-1

[Event "14th BPB Limburg Open 2022"]
[Site "Maastricht"]
[Date "2022.06.03"]
[Round "1.14"]
[White "Sucikova, Svetlana"]
[Black "Lenaerts, Lennert"]
[Result "0-1"]
[ECO "A13"]
[WhiteElo "2209"]
[BlackElo "2362"]
[Annotator "TA"]
[PlyCount "92"]
[EventDate "2022.06.03"]
[EventType "swiss"]
[EventCountry "NED"]
[SourceTitle "playchess.com"]
[Source "ChessBase"]
[SourceQuality "1"]
[TimeControl "7200+15"]

{[%evp 9,92,8,16,0,0,0,10,0,0,-4,2,1,12,-12,-9,-10,-12,-18,-16,-16,-11,-11,0,-18,-15,-25,-21,-14,-10,-14,-8,-23,-22,-33,-33,-35,-37,-56,-56,-54,-47,-47,-25,-31,-31,-26,-18,-58,-39,-64,-60,-53,-57,-63,-19,-17,-19,-18,-19,-68,-81,-256,-231,-231,-227,-238,-80,-85,0,-228,-261,-261,-236,-249,-144,-136,-133,-494,-477,-1962,-1875,-29989,-29984,-29995,-29996]} 1. e3 {[%emt 0:00:58]} d5 {[%emt 0:00:28]} 2. Nf3 {[%emt 0:01:36]} Nf6 {[%emt 0:00:43]} 3. c4 {[%emt 0:00:59]} e6 {[%emt 0:00:59]} 4. b3 {[%emt 0:01:07]} Bd6 {[%emt 0:06:01]} 5. Bb2 {[%emt 0:01:40]} b6 {[%emt 0:00:53]} 6. Be2 {[%emt 0:03:45] A13: English Opening: 1...e6.} Nbd7 {[%emt 0:01:51]} 7. O-O {[%emt 0:01:04]} O-O {[%emt 0:00:28]} 8. d4 {[%emt 0:01:30] The position is equal.} Bb7 {[%emt 0:03:15]} 9. Nbd2 {[%emt 0:01:48]} Qe7 {[%emt 0:03:10]} 10. Rc1 {[%emt 0:02:25]} Ne4 {[%emt 0:03:04]} 11. Ne5 {[%emt 0:10:21]} Nxd2 {[%emt 0:14:04]} 12. Qxd2 {[%emt 0:00:52]} Nxe5 {[%emt 0:03:04]} 13. dxe5 {[%emt 0:00:14]} Bb4 {[%emt 0:00:06] [#]} 14. Qc2 $146 {[%emt 0:05:13]} ({Predecessor:} 14. Qd4 Rfd8 15. Rfd1 a5 16. a4 Bc5 17. Qg4 dxc4 18. Bxc4 Rxd1+ 19. Rxd1 Rd8 20. Rxd8+ Qxd8 {0-1 (28) Jupa,I (2097)-Delchev,A (2566) Pristina 2018}) 14... dxc4 {[%emt 0:00:55]} 15. Qxc4 {[%emt 0:00:32]} Bc5 {[%emt 0:00:57]} 16. Qg4 {[%emt 0:15:31]} Rfd8 {[%emt 0:04:05]} 17. Rc2 {[%emt 0:00:40]} Rac8 {[%emt 0:06:39]} 18. Rfc1 {[%emt 0:02:04]} a6 {[%emt 0:01:02]} 19. h3 {[%emt 0:07:13]} Rd7 {[%emt 0:04:34]} 20. Qf4 {[%emt 0:11:36]} Rcd8 {[%emt 0:07:11]} 21. Bh5 {[%emt 0:01:09]} h6 {[%emt 0:07:57]} 22. Kh2 {[%emt 0:05:56]} a5 {[%emt 0:01:33]} 23. Bf3 {[%emt 0:03:47]} Bxf3 {[%emt 0:02:50]} 24. Qxf3 {[%emt 0:01:19]} Rd2 {[%emt 0:02:29]} 25. Bc3 {[%emt 0:02:14]} Rxc2 {[%emt 0:02:29]} 26. Rxc2 {[%emt 0:00:04]} Rd5 {[%emt 0:00:35]} 27. Qe2 {[%emt 0:02:19]} Qd7 {[%emt 0:02:56]} 28. Qc4 {[%emt 0:12:40]} b5 {[%emt 0:05:55]} 29. Qe4 {[%emt 0:01:43]} Bb6 {[%emt 0:02:12]} 30. Bd4 {[%emt 0:06:43]} c5 {[%emt 0:08:50]} 31. Bc3 {[%emt 0:00:19]} a4 {[%emt 0:02:27]} 32. bxa4 {[%emt 0:00:56]} b4 {[%emt 0:00:13]} 33. Bb2 {[%emt 0:03:36]} Qxa4 {[%emt 0:00:33]} 34. Qc4 {[%emt 0:00:07]} (34. a3 $11) 34... Qd7 $36 {[%emt 0:04:39][%mdl 2048] Black is really pushing.} 35. f4 $2 {[%emt 0:01:34]} (35. Qe2 $17 {was called for.}) 35... Rd2 $19 {[%emt 0:03:04]} 36. Rxd2 {[%emt 0:05:42]} Qxd2 {[%emt 0:00:03][%mdl 4096] Endgame KQB-KQB} 37. Bc1 {[%emt 0:00:06]} Qd1 {[%emt 0:06:20]} (37... Qe1 $1 $19 {Strongly threatening ...Bd8.} 38. Qc2 Qf1) 38. Bb2 $17 {[%emt 0:01:00]} Qd2 {[%emt 0:01:23] Black is more active.} (38... g6 $17) 39. Bc1 $1 $19 {[%emt 0:00:08]} Qe1 {[%emt 0:00:03]} 40. Qc2 {[%emt 0:04:27]} Qf1 {[%emt 0:00:08] Threatens to win with ...c4.} 41. a3 {[%emt 0:02:28] [#]} bxa3 {[%emt 0:02:23]} (41... b3 $1 $19 {[%cal Rb3c2]} 42. Qxb3 Qxc1 43. Qxb6 Qxe3) 42. Bxa3 $17 {[%emt 0:00:05]} c4 {[%emt 0:00:02]} 43. Bc1 {[%emt 0:00:26][%mdl 8192] [#]} (43. Qd2 $17 {is more resistant.}) 43... Ba5 $1 $19 {[%emt 0:00:18] And now ...Be1 would win.} 44. e4 {[%emt 0:00:45]} (44. f5 $142 exf5 45. Qb2) 44... Bb6 {[%emt 0:01:08] ( -> ...Bf2)} 45. Qd2 {[%emt 0:00:28]} Bf2 {[%emt 0:00:12][%csl Gf2][%cal Rf1g1]} 46. Qd8+ {[%emt 0:00:20]} Kh7 {[%emt 0:00:02] Weighted Error Value: White=0.59/Black=0.13 (very precise)} 0-1

[Event "14th BPB Limburg Open 2022"]
[Site "Maastricht"]
[Date "2022.06.04"]
[Round "2.1"]
[White "Elgersma, Onno"]
[Black "Warmerdam, Max"]
[Result "0-1"]
[ECO "B52"]
[WhiteElo "2303"]
[BlackElo "2614"]
[Annotator "TA"]
[PlyCount "130"]
[EventDate "2022.06.03"]
[EventType "swiss"]
[EventCountry "NED"]
[SourceTitle "playchess.com"]
[Source "ChessBase"]
[SourceQuality "1"]
[TimeControl "7200+15"]

{[%evp 11,130,0,20,16,28,31,31,33,29,0,0,0,15,0,9,-12,-14,-21,-17,-19,-12,-21,-16,-25,-19,-18,-14,-21,-19,-25,-25,-140,-139,-135,-139,-120,-118,-238,-245,-226,-229,-296,-285,-289,-258,-258,-258,-255,-255,-258,-258,-258,-258,-258,-258,-324,-343,-312,-286,-289,-270,-323,-318,-464,-362,-406,-242,-782,-760,-683,-684,-552,-597,-792,-733,-914,-845,-815,-815,-879,-718,-841,-739,-734,-694,-615,-391,-272,-268,-251,-268,-268,-268,-263,-68,-68,-68,-68,-31,-40,-40,-2365,-249,-1199,-1164,-29953,-29952,-29950,-29946,-29947,-12758,-7441,-6950,-6413,-6070,-29984,-29985,-29985,-29986,-29985,-29984]} 1. e4 {[%emt 0:00:04]} c5 {[%emt 0:00:22]} 2. Nf3 {[%emt 0:00:06]} d6 {[%emt 0:00:31]} 3. Bb5+ {[%emt 0:00:21]} Bd7 {[%emt 0:00:57]} 4. Bxd7+ {[%emt 0:03:45]} Nxd7 {[%emt 0:00:45]} 5. c4 {[%emt 0:02:25]} Ngf6 {[%emt 0:00:45][%cal Bg8f6,Bf6d7,Bd7b8,Bb8c6][%mdl 32]} 6. Nc3 {[%emt 0:00:12]} Ne5 {[%emt 0:00:29]} 7. O-O {[%emt 0:10:19] [#] B52: Sicilian: Moscow Variation with 3...Bd7.} Nfd7 $146 {[%emt 0:03:49]} ({Predecessor:} 7... e6 8. d3 Be7 9. Nxe5 dxe5 10. f4 O-O 11. fxe5 Qd4+ 12. Kh1 Qxe5 13. Bf4 Qh5 14. Qe1 Nd7 {0-1 (57) Sadikhov,U (2491)-Van Foreest,J (2624) Manavgat 2018}) 8. Nxe5 {[%emt 0:08:04]} dxe5 {[%emt 0:00:43]} 9. d3 {[%emt 0:00:30] White is slightly better.} e6 {[%emt 0:01:12]} 10. Qg4 {[%emt 0:03:18]} h5 {[%emt 0:09:52]} 11. Qe2 {[%emt 0:07:59]} Bd6 {[%emt 0:12:15]} 12. a3 {[%emt 1:26:12]} Nb8 {[%emt 0:23:55]} 13. Rb1 {[%emt 0:00:00]} Nc6 {[%emt 0:00:11]} 14. Be3 {[%emt 0:00:00]} b6 {[%emt 0:02:56]} 15. Na2 {[%emt 0:00:00]} Qe7 {[%emt 0:04:14]} 16. Qd2 {[%emt 0:00:00]} O-O {[%emt 0:26:58]} 17. b4 {[%emt 0:00:00]} g6 {[%emt 0:17:26]} 18. b5 {[%emt 0:00:00]} Nd4 {[%emt 0:01:38]} 19. Bxd4 {[%emt 0:00:00]} exd4 {[%emt 0:00:04]} 20. f4 {[%emt 0:00:00]} a6 {[%emt 0:00:04]} 21. Qc1 {[%emt 0:00:00]} (21. a4 $11 {keeps the balance.}) 21... axb5 $17 {[%emt 0:00:16]} 22. Rxb5 {[%emt 0:00:00]} Bc7 {[%emt 0:00:33] Black is more active.} 23. Rb3 {[%emt 0:00:00]} f5 {[%emt 0:00:33]} 24. Qe1 {[%emt 0:00:00]} (24. e5 $17 {only move.}) 24... e5 $19 {[%emt 0:00:45][%cal Be6e5,Be5e4][%mdl 32]} 25. exf5 {[%emt 0:00:00]} Rxf5 {[%emt 0:00:51]} ({Worse is} 25... gxf5 26. Qe2 $15) 26. Rb1 {[%emt 0:00:00]} Rxa3 {[%emt 0:01:37]} 27. Nc1 {[%emt 0:00:00]} e4 {[%emt 0:00:34]} 28. g3 {[%emt 0:00:21]} e3 {[%emt 0:00:36]} 29. Qe2 {[%emt 0:00:23]} Qf7 {[%emt 0:01:29]} 30. h4 {[%emt 0:00:48]} Qd7 {[%emt 0:00:47]} 31. Rb3 {[%emt 0:01:20]} Ra1 {[%emt 0:01:14]} 32. Rb2 {[%emt 0:00:51]} Rf8 {[%emt 0:01:35]} 33. Ra2 {[%emt 0:01:07]} Rxa2 {[%emt 0:02:27]} 34. Qxa2 {[%emt 0:00:01]} Qc6 {[%emt 0:01:36]} 35. Qe2 {[%emt 0:00:33]} Kg7 {[%emt 0:00:10]} 36. Nb3 {[%emt 0:00:16]} Ra8 {[%emt 0:02:19]} 37. Na1 {[%emt 0:00:16]} (37. Nc1 {keeps fighting.}) 37... Bd6 {[%emt 0:01:24]} 38. Nc2 {[%emt 0:00:14]} Ra2 {[%emt 0:00:17]} (38... Qd7 $142 39. Ne1 Qh3) 39. Ra1 $2 {[%emt 0:00:02]} (39. Nxd4 Qa8 40. Nc2) 39... Rxa1+ {[%emt 0:00:08]} 40. Nxa1 {[%emt 0:00:01][%mdl 4096] Endgame KQB-KQN} b5 {[%emt 0:00:03]} 41. cxb5 {[%emt 0:00:16]} Qxb5 {[%emt 0:00:02]} 42. Nc2 {[%emt 0:00:14]} Qb2 {[%emt 0:00:03] Prevents Na3.} 43. Kf1 {[%emt 0:00:17]} Bc7 {[%emt 0:00:35]} 44. Ne1 {[%emt 0:00:38]} Qxe2+ {[%emt 0:01:25]} 45. Kxe2 {[%emt 0:00:02] KB-KN} Kf6 {[%emt 0:00:06]} 46. Nc2 {[%emt 0:00:23]} Kf5 {[%emt 0:00:31] [#] ...Kg4 is the strong threat.} 47. Kf3 {[%emt 0:00:01]} Ba5 {[%emt 0:00:05]} 48. Na3 {[%emt 0:00:01]} Be1 {[%emt 0:00:03] aiming for ...Ke6.} 49. Nc4 {[%emt 0:00:13]} e2 {[%emt 0:00:14][%cal Oe1g3] White must now prevent ...Bxg3!} 50. Nd6+ {[%emt 0:00:23]} Ke6 {[%emt 0:00:01]} 51. Ne4 {[%emt 0:00:06] [#]} Bxg3 $1 {[%emt 0:00:11][%mdl 512]} 52. Kxe2 {[%emt 0:00:04]} Bxh4 {[%emt 0:00:10]} ({Better is} 52... Bxf4 $19 {Strongly threatening ...Kd5.} 53. Nxc5+ Kf5) 53. Nxc5+ $15 {[%emt 0:00:13]} Kf5 {[%emt 0:00:08]} 54. Kf3 {[%emt 0:00:01]} Be7 {[%emt 0:00:27]} 55. Nb3 {[%emt 0:00:07]} Bf6 {[%emt 0:01:39] And now ...h4 would win.} 56. Nc1 $1 {[%emt 0:00:10] Loses the game.} Bg7 $2 {[%emt 0:00:00]} (56... h4 {Hoping for ...Bd8.} 57. Ne2 Bh8) 57. Ne2 $2 {[%emt 0:00:17]} (57. Nb3) 57... h4 $19 {[%emt 0:00:00]} 58. Ng1 {[%emt 0:00:22]} Bf8 {[%emt 0:00:00]} 59. Ne2 {[%emt 0:00:12]} Bc5 {[%emt 0:00:00]} 60. Ng1 {[%emt 0:00:17]} Bb4 {[%emt 0:00:00] ( -> ...Bd2)} 61. Ne2 {[%emt 0:01:25]} Bc3 {[%emt 0:00:00]} 62. Ng1 {[%emt 0:00:14]} Bd2 {[%emt 0:00:01]} 63. Ne2 {[%emt 0:00:13]} Be3 {[%emt 0:00:02] Black mates.} 64. Kg2 {[%emt 0:00:09]} Kg4 {[%emt 0:00:01]} 65. Kh2 {[%emt 0:00:27]} Bxf4+ {[%emt 0:00:01] Weighted Error Value: White=0.56/Black=0.30} 0-1

[Event "14th BPB Limburg Open 2022"]
[Site "Maastricht"]
[Date "2022.06.04"]
[Round "2.2"]
[White "Donchenko, Alexander"]
[Black "Pauly, Carlo"]
[Result "1/2-1/2"]
[ECO "E63"]
[WhiteElo "2599"]
[BlackElo "2297"]
[Annotator "TA"]
[PlyCount "99"]
[EventDate "2022.06.03"]
[EventType "swiss"]
[EventCountry "NED"]
[SourceTitle "playchess.com"]
[Source "ChessBase"]
[SourceQuality "1"]
[TimeControl "7200+15"]

{[%evp 16,99,42,27,40,31,53,30,41,37,37,35,45,52,45,14,56,74,65,54,62,51,54,46,60,53,56,10,19,15,19,23,17,25,12,17,19,13,8,0,0,0,11,9,10,0,0,0,0,0,0,-19,-12,-13,-12,-27,0,0,0,0,0,0,0,0,0,0,0,0,0,0,0,0,0,0,2,2,2,2,9,9,9,2,2,2,2,2]} 1. d4 {[%emt 0:00:02]} Nf6 {[%emt 0:00:45]} 2. c4 {[%emt 0:00:08]} g6 {[%emt 0:00:08]} 3. g3 {[%emt 0:00:22]} Bg7 {[%emt 0:00:12]} 4. Bg2 {[%emt 0:00:07]} O-O {[%emt 0:00:13]} 5. Nc3 {[%emt 0:00:07]} d6 {[%emt 0:00:13]} 6. Nf3 {[%emt 0:00:07]} Nc6 {[%emt 0:00:13]} 7. O-O {[%emt 0:00:23]} a6 {[%emt 0:00:11] 7...e5 might become the main line.} 8. b3 {[%emt 0:00:22]} Rb8 {[%emt 0:00:42]} 9. d5 {[%emt 0:00:15]} Na5 {[%emt 0:01:02] E63: King's Indian: Fianchetto: Panno Variation with 7...a6.} 10. Bg5 {[%emt 0:00:13]} h6 {[%emt 0:02:02]} 11. Bd2 {[%emt 0:00:24]} c5 {[%emt 0:00:30] White has an edge.} 12. dxc6 {[%emt 0:00:12]} Nxc6 {[%emt 0:00:24]} 13. Rc1 {[%emt 0:00:20]} Kh7 {[%emt 0:06:01]} 14. h3 {[%emt 0:07:17] [#]} Bd7 $146 {[%emt 0:05:54]} ({Predecessor:} 14... d5 15. Bf4 Ra8 16. cxd5 Nb4 17. e4 a5 18. a3 Na6 19. Be5 Bd7 20. Nd4 Rc8 {1-0 (41) Ponkratov,P (2641)-Jary,S (2275) Chess.com INT 2022}) 15. Nd5 {[%emt 0:09:30]} Nxd5 {[%emt 0:12:46]} 16. cxd5 {[%emt 0:00:09]} Nd4 {[%emt 0:01:15]} 17. Nxd4 {[%emt 0:23:21]} Bxd4 {[%emt 1:31:59] [#]} 18. Bxh6 $1 {[%emt 0:03:04]} Bxf2+ $1 {[%emt 0:00:00]} 19. Rxf2 {[%emt 0:00:06]} Kxh6 {[%emt 0:00:00]} 20. Qd4 {[%emt 0:00:12] Against Qb6} f6 {[%emt 0:00:00]} 21. Rcf1 {[%emt 0:05:12]} (21. g4 $1 $14) 21... Kg7 {[%emt 0:00:00]} 22. g4 {[%emt 0:04:00][%cal Bg3g4,Bg4g5][%mdl 32]} Qc7 {[%emt 0:00:00]} 23. g5 {[%emt 0:22:19][%cal Rg5f6]} Qc5 {[%emt 0:00:00]} 24. Qxc5 {[%emt 0:06:32]} dxc5 {[%emt 0:00:00]} 25. d6 {[%emt 0:00:04]} f5 {[%emt 0:00:00]} 26. dxe7 {[%emt 0:00:16]} Rfe8 {[%emt 0:00:00]} 27. Rd1 {[%emt 0:00:44]} Rxe7 {[%emt 0:00:00]} 28. Rd6 {[%emt 0:00:14]} b5 {[%emt 0:00:00]} 29. Rxa6 {[%emt 0:02:25]} c4 {[%emt 0:00:00]} 30. Rf3 {[%emt 0:10:08]} Bc8 {[%emt 0:00:00]} 31. Ra5 {[%emt 0:02:47]} Rxe2 {[%emt 0:00:00]} 32. Bf1 {[%emt 0:02:16]} Re4 {[%emt 0:00:00]} 33. a4 {[%emt 0:04:18]} Be6 {[%emt 0:00:00]} 34. b4 {[%emt 0:03:19]} bxa4 {[%emt 0:00:00]} 35. Rxa4 {[%emt 0:00:02]} Re1 {[%emt 0:00:00]} 36. Kf2 {[%emt 0:01:30] The position is equal.} Rb1 {[%emt 0:00:00]} 37. Re3 {[%emt 0:00:25]} Rb6 {[%emt 0:00:00]} 38. Re5 {[%emt 0:02:34]} c3 {[%emt 0:00:00]} 39. Rc5 {[%emt 0:03:32] [#] And now Rc7+ would win.} Rb2+ {[%emt 0:00:00]} 40. Ke3 {[%emt 0:00:40] aiming for Rc7+.} R2xb4 {[%emt 0:00:00]} 41. Rc7+ {[%emt 0:00:16]} Kf8 {[%emt 0:00:00]} 42. Ra8+ {[%emt 0:01:02]} Rb8 {[%emt 0:00:00]} 43. Rxb8+ {[%emt 0:00:32]} Rxb8 $11 {[%emt 0:00:00][%mdl 4096] Endgame KRB-KRB} 44. Kd4 {[%emt 0:00:51]} Rc8 {[%emt 0:00:00]} 45. Rxc8+ {[%emt 0:00:17]} Bxc8 {[%emt 0:00:00]} 46. Kxc3 {[%emt 0:00:06]} Kg7 {[%emt 0:00:00]} 47. Kd4 {[%emt 0:00:02]} Bb7 {[%emt 0:00:00]} 48. Ke5 {[%emt 0:00:06]} Bf3 {[%emt 0:00:00]} 49. h4 {[%emt 0:00:07]} Bd1 {[%emt 0:00:00]} 50. Bd3 {[%emt 0:00:20] Weighted Error Value: White=0.04 (flawless) /Black=0.04 (flawless)} 1/2-1/2